[Event "Early-Titled-Tuesday-Blitz-February-13-2024"]
[Site "Chess.com"]
[Date "2024.02.13"]
[Round "8"]
[White "PepeCuenca"]
[Black "David_George21"]
[Result "1-0"]
[WhiteElo "2676"]
[BlackElo "2255"]
[TimeControl "180+1"]
[EndTime "9:33:32 PST"]
[Termination "PepeCuenca won by checkmate"]

1. c4 {[%clk 0:03:00.9]} 1... c5 {[%clk 0:02:59.2]} 2. Nf3 {[%clk 0:03:00.5]}
2... Nc6 {[%clk 0:02:58.1]} 3. d4 {[%clk 0:03:01.1]} 3... cxd4 {[%clk
0:02:56.6]} 4. Nxd4 {[%clk 0:03:02]} 4... e6 {[%clk 0:02:56.4]} 5. g3 {[%clk
0:03:01.9]} 5... a6 {[%clk 0:02:54.1]} 6. Bg2 {[%clk 0:03:01.3]} 6... Nf6 {[%clk
0:02:52.8]} 7. O-O {[%clk 0:03:01.1]} 7... d6 {[%clk 0:02:52.4]} 8. Nc3 {[%clk
0:03:00.8]} 8... Nxd4 {[%clk 0:02:52.1]} 9. Qxd4 {[%clk 0:03:00.7]} 9... Be7
{[%clk 0:02:52.5]} 10. b3 {[%clk 0:02:58.5]} 10... O-O {[%clk 0:02:52.1]} 11.
Bb2 {[%clk 0:02:51.3]} 11... Qc7 {[%clk 0:02:46.8]} 12. Rac1 {[%clk 0:02:49.8]}
12... Rb8 {[%clk 0:02:42.7]} 13. Rfd1 {[%clk 0:02:49.1]} 13... b6 {[%clk
0:02:42.5]} 14. h3 {[%clk 0:02:30.7]} 14... Bb7 {[%clk 0:02:39.8]} 15. e4 {[%clk
0:02:29.9]} 15... Rbc8 {[%clk 0:02:21.3]} 16. Na4 {[%clk 0:02:25.3]} 16... Bc6
{[%clk 0:02:13.9]} 17. Nxb6 {[%clk 0:02:06.4]} 17... Rb8 {[%clk 0:02:05.2]} 18.
Nd5 {[%clk 0:02:06.1]} 18... Bxd5 {[%clk 0:01:57.6]} 19. cxd5 {[%clk 0:02:03.7]}
19... Qa5 {[%clk 0:01:57.6]} 20. Ra1 {[%clk 0:01:28.9]} 20... Rfc8 {[%clk
0:01:20.8]} 21. dxe6 {[%clk 0:01:18.7]} 21... fxe6 {[%clk 0:01:20.3]} 22. e5
{[%clk 0:01:07.9]} 22... dxe5 {[%clk 0:00:52.3]} 23. Qxe5 {[%clk 0:01:07.9]}
23... Qxe5 {[%clk 0:00:50.6]} 24. Bxe5 {[%clk 0:01:08.8]} 24... Rb5 {[%clk
0:00:49.4]} 25. Bf4 {[%clk 0:00:51.9]} 25... Rc2 {[%clk 0:00:43.7]} 26. Rd2
{[%clk 0:00:50.8]} 26... Rbc5 {[%clk 0:00:38.1]} 27. Rad1 {[%clk 0:00:47.8]}
27... Kf7 {[%clk 0:00:30.7]} 28. Rxc2 {[%clk 0:00:47.3]} 28... Rxc2 {[%clk
0:00:29.8]} 29. Rd2 {[%clk 0:00:47.9]} 29... Rc3 {[%clk 0:00:25.4]} 30. Kh2
{[%clk 0:00:42.6]} 30... a5 {[%clk 0:00:19.6]} 31. Re2 {[%clk 0:00:42.8]} 31...
Nd5 {[%clk 0:00:18.7]} 32. Be5 {[%clk 0:00:41.6]} 32... Rd3 {[%clk 0:00:18.2]}
33. Be4 {[%clk 0:00:39.8]} 33... Rd1 {[%clk 0:00:17.1]} 34. h4 {[%clk
0:00:20.3]} 34... Bf6 {[%clk 0:00:16.8]} 35. Bxf6 {[%clk 0:00:18]} 35... Nxf6
{[%clk 0:00:16.8]} 36. Bf3 {[%clk 0:00:10.2]} 36... Ra1 {[%clk 0:00:15.9]} 37.
Rd2 {[%clk 0:00:09]} 37... Rc1 {[%clk 0:00:15.6]} 38. Kg2 {[%clk 0:00:09.1]}
38... h6 {[%clk 0:00:14.4]} 39. Rd4 {[%clk 0:00:08.8]} 39... Rc2 {[%clk
0:00:13.6]} 40. Ra4 {[%clk 0:00:08.8]} 40... Rc5 {[%clk 0:00:13.8]} 41. Be2
{[%clk 0:00:08.7]} 41... Kg6 {[%clk 0:00:13.9]} 42. Bd3+ {[%clk 0:00:08.4]}
42... Kf7 {[%clk 0:00:13.8]} 43. Rd4 {[%clk 0:00:08]} 43... g5 {[%clk
0:00:13.7]} 44. hxg5 {[%clk 0:00:06.8]} 44... hxg5 {[%clk 0:00:14.2]} 45. Bc4
{[%clk 0:00:07.1]} 45... Ke7 {[%clk 0:00:12.9]} 46. Rd1 {[%clk 0:00:06.3]} 46...
g4 {[%clk 0:00:12.2]} 47. Re1 {[%clk 0:00:06.6]} 47... Rc6 {[%clk 0:00:12.2]}
48. Re5 {[%clk 0:00:06.7]} 48... a4 {[%clk 0:00:12.1]} 49. Rg5 {[%clk
0:00:06.1]} 49... axb3 {[%clk 0:00:11.7]} 50. axb3 {[%clk 0:00:07]} 50... Rd6
{[%clk 0:00:11.6]} 51. Rg7+ {[%clk 0:00:07.1]} 51... Kf8 {[%clk 0:00:12.2]} 52.
Rg5 {[%clk 0:00:06.5]} 52... Rd2 {[%clk 0:00:12.2]} 53. Re5 {[%clk 0:00:06.3]}
53... Kf7 {[%clk 0:00:10.4]} 54. Bxe6+ {[%clk 0:00:06]} 54... Kg6 {[%clk
0:00:10.6]} 55. Bc4 {[%clk 0:00:04.9]} 55... Rb2 {[%clk 0:00:09.9]} 56. Re3
{[%clk 0:00:04.4]} 56... Rc2 {[%clk 0:00:09.5]} 57. Bd3+ {[%clk 0:00:04.2]}
57... Kg7 {[%clk 0:00:09.9]} 58. Bxc2 {[%clk 0:00:04.8]} 58... Kf7 {[%clk
0:00:10.6]} 59. Rc3 {[%clk 0:00:05]} 59... Kg7 {[%clk 0:00:11.5]} 60. Rc6 {[%clk
0:00:05.1]} 60... Kf7 {[%clk 0:00:12.1]} 61. Rxf6+ {[%clk 0:00:05.4]} 61... Kg7
{[%clk 0:00:13]} 62. Bd1 {[%clk 0:00:06.2]} 62... Kxf6 {[%clk 0:00:13.8]} 63.
Bxg4 {[%clk 0:00:07]} 63... Ke5 {[%clk 0:00:14.4]} 64. Bf3 {[%clk 0:00:07.9]}
64... Kd4 {[%clk 0:00:15.2]} 65. g4 {[%clk 0:00:08.8]} 65... Kc5 {[%clk
0:00:16]} 66. g5 {[%clk 0:00:09.7]} 66... Kb4 {[%clk 0:00:16.9]} 67. g6 {[%clk
0:00:10.6]} 67... Kxb3 {[%clk 0:00:17.8]} 68. g7 {[%clk 0:00:11.5]} 68... Kc4
{[%clk 0:00:18.7]} 69. g8=Q+ {[%clk 0:00:12.2]} 69... Kd4 {[%clk 0:00:19]} 70.
Qd5+ {[%clk 0:00:12.3]} 70... Kc3 {[%clk 0:00:18.7]} 71. Kg3 {[%clk 0:00:12.9]}
71... Kc2 {[%clk 0:00:19.6]} 72. Qd4 {[%clk 0:00:12.9]} 72... Kc1 {[%clk
0:00:19.6]} 73. Qd3 {[%clk 0:00:12.4]} 73... Kb2 {[%clk 0:00:19.5]} 74. Kf4
{[%clk 0:00:12.4]} 74... Kc1 {[%clk 0:00:19.5]} 75. Qe2 {[%clk 0:00:12.7]} 75...
Kb1 {[%clk 0:00:19.6]} 76. Ke4 {[%clk 0:00:13.6]} 76... Ka1 {[%clk 0:00:20]} 77.
Kd4 {[%clk 0:00:14.5]} 77... Kb1 {[%clk 0:00:20.6]} 78. Kc3 {[%clk 0:00:15.2]}
78... Ka1 {[%clk 0:00:21.5]} 79. Qb2# {[%clk 0:00:15.2]} 1-0

[Event "Early-Titled-Tuesday-Blitz-February-13-2024"]
[Site "Chess.com"]
[Date "2024.02.13"]
[Round "8"]
[White "TrahtarBelarus"]
[Black "Semetey"]
[Result "1-0"]
[WhiteElo "2870"]
[BlackElo "2644"]
[TimeControl "180+1"]
[EndTime "9:33:46 PST"]
[Termination "TrahtarBelarus won on time"]

1. a3 {[%clk 0:03:00.9]} 1... a6 {[%clk 0:02:49.6]} 2. c4 {[%clk 0:02:58.3]}
2... c6 {[%clk 0:02:47.4]} 3. d4 {[%clk 0:02:44.1]} 3... d5 {[%clk 0:02:43.8]}
4. cxd5 {[%clk 0:02:43.8]} 4... cxd5 {[%clk 0:02:43.7]} 5. Bf4 {[%clk
0:02:41.5]} 5... Nc6 {[%clk 0:02:41.7]} 6. Nc3 {[%clk 0:02:41.1]} 6... Nf6
{[%clk 0:02:41.9]} 7. e3 {[%clk 0:02:37.6]} 7... Bg4 {[%clk 0:02:39.1]} 8. Nge2
{[%clk 0:02:30.3]} 8... e6 {[%clk 0:02:38.4]} 9. Qb3 {[%clk 0:02:14.9]} 9... b5
{[%clk 0:02:20.5]} 10. h3 {[%clk 0:02:13.1]} 10... Bh5 {[%clk 0:02:07.7]} 11.
Ng3 {[%clk 0:02:11.8]} 11... Bd6 {[%clk 0:01:57.7]} 12. Nxh5 {[%clk 0:01:55]}
12... Nxh5 {[%clk 0:01:58.6]} 13. Bxd6 {[%clk 0:01:47.1]} 13... Qxd6 {[%clk
0:01:59.5]} 14. Be2 {[%clk 0:01:47.5]} 14... Nf6 {[%clk 0:01:39.2]} 15. O-O
{[%clk 0:01:46.4]} 15... O-O {[%clk 0:01:38.9]} 16. Rfc1 {[%clk 0:01:38.2]}
16... Rfc8 {[%clk 0:01:38.6]} 17. Na2 {[%clk 0:01:34]} 17... Ne4 {[%clk
0:01:32.8]} 18. Nb4 {[%clk 0:01:25.3]} 18... Na5 {[%clk 0:01:32.8]} 19. Qd1
{[%clk 0:01:15.9]} 19... Nc4 {[%clk 0:01:29.6]} 20. Nd3 {[%clk 0:01:08.7]} 20...
a5 {[%clk 0:01:13]} 21. a4 {[%clk 0:01:07.3]} 21... b4 {[%clk 0:01:12.3]} 22.
Bf3 {[%clk 0:00:56.8]} 22... f5 {[%clk 0:00:57.5]} 23. b3 {[%clk 0:00:43.1]}
23... Ncd2 {[%clk 0:00:53.7]} 24. Bxe4 {[%clk 0:00:39.5]} 24... Nxe4 {[%clk
0:00:53.6]} 25. Ne5 {[%clk 0:00:23.2]} 25... Rc3 {[%clk 0:00:51.9]} 26. f3
{[%clk 0:00:19.1]} 26... Rxc1 {[%clk 0:00:46.1]} 27. Rxc1 {[%clk 0:00:20]} 27...
Nc3 {[%clk 0:00:46.1]} 28. Qd3 {[%clk 0:00:20.5]} 28... Rc8 {[%clk 0:00:44.1]}
29. Kh2 {[%clk 0:00:20.9]} 29... h6 {[%clk 0:00:40]} 30. g4 {[%clk 0:00:21]}
30... Rf8 {[%clk 0:00:36.7]} 31. gxf5 {[%clk 0:00:09]} 31... Rxf5 {[%clk
0:00:36]} 32. Rg1 {[%clk 0:00:09.3]} 32... Qc7 {[%clk 0:00:17.5]} 33. Kh1 {[%clk
0:00:07]} 33... Qe7 {[%clk 0:00:16.7]} 34. Rg4 {[%clk 0:00:06.4]} 34... Rg5
{[%clk 0:00:14.7]} 35. Kg2 {[%clk 0:00:05.4]} 35... Rxg4+ {[%clk 0:00:14.9]} 36.
hxg4 {[%clk 0:00:06]} 36... Qh4 {[%clk 0:00:15.3]} 37. Qg6 {[%clk 0:00:06.2]}
37... Qe7 {[%clk 0:00:14.3]} 38. Kf1 {[%clk 0:00:03.8]} 38... Nb1 {[%clk
0:00:13.3]} 39. Kf2 {[%clk 0:00:03.5]} 39... Nd2 {[%clk 0:00:12.9]} 40. Qd3
{[%clk 0:00:03.7]} 40... Nxb3 {[%clk 0:00:11.5]} 41. Qxb3 {[%clk 0:00:04.6]}
41... Qc7 {[%clk 0:00:11]} 42. Qd3 {[%clk 0:00:04.3]} 42... Qc1 {[%clk
0:00:10.9]} 43. Qg6 {[%clk 0:00:04.5]} 43... Qd2+ {[%clk 0:00:10.9]} 44. Kf1
{[%clk 0:00:04.5]} 44... Qxe3 {[%clk 0:00:11.1]} 45. Qxe6+ {[%clk 0:00:04.3]}
45... Kh7 {[%clk 0:00:10.6]} 46. Qf5+ {[%clk 0:00:04.4]} 46... Kg8 {[%clk
0:00:11]} 47. Qc8+ {[%clk 0:00:04.7]} 47... Kh7 {[%clk 0:00:11.3]} 48. Qf5+
{[%clk 0:00:05.3]} 48... Kg8 {[%clk 0:00:11.7]} 49. Qd3 {[%clk 0:00:06]} 49...
Qc1+ {[%clk 0:00:11.2]} 50. Ke2 {[%clk 0:00:05.6]} 50... Qb2+ {[%clk 0:00:10.9]}
51. Kd1 {[%clk 0:00:06.1]} 51... b3 {[%clk 0:00:10.7]} 52. Qb5 {[%clk
0:00:03.5]} 52... Qa1+ {[%clk 0:00:11]} 53. Ke2 {[%clk 0:00:03.6]} 53... b2
{[%clk 0:00:10.9]} 54. Qxd5+ {[%clk 0:00:03.8]} 54... Kh7 {[%clk 0:00:10.6]} 55.
Qe4+ {[%clk 0:00:04.2]} 55... Kg8 {[%clk 0:00:11]} 56. Qd5+ {[%clk 0:00:04.1]}
56... Kh7 {[%clk 0:00:11.5]} 57. Qe4+ {[%clk 0:00:04.2]} 57... Kh8 {[%clk
0:00:12]} 58. Ng6+ {[%clk 0:00:04.1]} 58... Kg8 {[%clk 0:00:12.4]} 59. Qe6+
{[%clk 0:00:04.1]} 59... Kh7 {[%clk 0:00:12.9]} 60. Nf8+ {[%clk 0:00:04.7]}
60... Kh8 {[%clk 0:00:13.2]} 61. Ng6+ {[%clk 0:00:04.8]} 61... Kh7 {[%clk
0:00:13.8]} 62. Ne7 {[%clk 0:00:05.1]} 62... Qe1+ {[%clk 0:00:03.4]} 63. Kxe1
{[%clk 0:00:05.3]} 63... b1=Q+ {[%clk 0:00:03.9]} 64. Kf2 {[%clk 0:00:06]} 64...
Qb8 {[%clk 0:00:04]} 65. Qf5+ {[%clk 0:00:04.1]} 65... Kh8 {[%clk 0:00:04.3]}
66. Ng6+ {[%clk 0:00:04.3]} 66... Kg8 {[%clk 0:00:04.9]} 67. Ne5 {[%clk
0:00:04.7]} 67... Qb2+ {[%clk 0:00:04.3]} 68. Kg3 {[%clk 0:00:05.2]} 68... Qb8
{[%clk 0:00:04.5]} 69. Qe4 {[%clk 0:00:05.3]} 69... Qe8 {[%clk 0:00:04]} 70.
Qd5+ {[%clk 0:00:05.5]} 70... Kh7 {[%clk 0:00:04.5]} 71. Qxa5 {[%clk 0:00:06.2]}
71... Qd8 {[%clk 0:00:04.1]} 72. Qxd8 {[%clk 0:00:06.1]} 1-0

[Event "Early-Titled-Tuesday-Blitz-February-13-2024"]
[Site "Chess.com"]
[Date "2024.02.13"]
[Round "8"]
[White "Elsa167"]
[Black "CSB7"]
[Result "1/2-1/2"]
[WhiteElo "2902"]
[BlackElo "2771"]
[TimeControl "180+1"]
[EndTime "9:33:47 PST"]
[Termination "Game drawn by repetition"]

1. e4 {[%clk 0:03:00.9]} 1... c6 {[%clk 0:02:59.5]} 2. d4 {[%clk 0:02:53.8]}
2... d5 {[%clk 0:02:59.9]} 3. e5 {[%clk 0:02:54.3]} 3... Bf5 {[%clk 0:02:59.4]}
4. g4 {[%clk 0:02:34.8]} 4... Bd7 {[%clk 0:02:43.7]} 5. h4 {[%clk 0:02:30.9]}
5... c5 {[%clk 0:02:32.1]} 6. dxc5 {[%clk 0:02:22]} 6... e6 {[%clk 0:02:32]} 7.
Be3 {[%clk 0:02:18.4]} 7... Bc6 {[%clk 0:02:11.8]} 8. Bd4 {[%clk 0:02:09.5]}
8... Nd7 {[%clk 0:02:09.9]} 9. b4 {[%clk 0:02:09.4]} 9... a6 {[%clk 0:01:40.6]}
10. Nc3 {[%clk 0:02:02]} 10... b6 {[%clk 0:01:30.4]} 11. cxb6 {[%clk 0:01:44.3]}
11... Bxb4 {[%clk 0:01:31.3]} 12. Rh3 {[%clk 0:01:38.1]} 12... Nxb6 {[%clk
0:01:18.7]} 13. Rb1 {[%clk 0:01:36.9]} 13... Ba5 {[%clk 0:01:18.7]} 14. Qc1
{[%clk 0:01:24.8]} 14... Ne7 {[%clk 0:01:03.4]} 15. Qa3 {[%clk 0:01:21.7]} 15...
Nd7 {[%clk 0:00:58.4]} 16. h5 {[%clk 0:01:16]} 16... O-O {[%clk 0:00:38.8]} 17.
Bd3 {[%clk 0:01:15.9]} 17... Bb5 {[%clk 0:00:34.9]} 18. Ne2 {[%clk 0:01:00.2]}
18... Nc6 {[%clk 0:00:33.3]} 19. h6 {[%clk 0:00:20.5]} 19... g6 {[%clk
0:00:28.2]} 20. f4 {[%clk 0:00:19.8]} 20... Qc7 {[%clk 0:00:27.5]} 21. Kf1
{[%clk 0:00:10.7]} 21... Nxd4 {[%clk 0:00:19.4]} 22. Nxd4 {[%clk 0:00:10.5]}
22... Bxc3 {[%clk 0:00:18.2]} 23. Nxb5 {[%clk 0:00:04.8]} 23... axb5 {[%clk
0:00:17.8]} 24. Qe7 {[%clk 0:00:04.5]} 24... Qd8 {[%clk 0:00:14.4]} 25. Qd6
{[%clk 0:00:04.6]} 25... Nb6 {[%clk 0:00:13.2]} 26. Bxb5 {[%clk 0:00:04]} 26...
Qxd6 {[%clk 0:00:08.1]} 27. exd6 {[%clk 0:00:04.9]} 27... Bd4 {[%clk 0:00:07.3]}
28. Bc6 {[%clk 0:00:02.9]} 28... Rac8 {[%clk 0:00:06.9]} 29. Bb5 {[%clk
0:00:01.3]} 29... Rfd8 {[%clk 0:00:07.3]} 30. Rd3 {[%clk 0:00:01.6]} 30... Bc5
{[%clk 0:00:07.2]} 31. d7 {[%clk 0:00:02.2]} 31... Nxd7 {[%clk 0:00:07]} 32. g5
{[%clk 0:00:02.8]} 32... Bd6 {[%clk 0:00:06.8]} 33. Rf3 {[%clk 0:00:02.1]} 33...
Nc5 {[%clk 0:00:07]} 34. a4 {[%clk 0:00:02.3]} 34... Rb8 {[%clk 0:00:07.5]} 35.
c4 {[%clk 0:00:02.5]} 35... dxc4 {[%clk 0:00:07.4]} 36. Rc1 {[%clk 0:00:03.2]}
36... Ne4 {[%clk 0:00:02.8]} 37. Kg2 {[%clk 0:00:03.7]} 37... c3 {[%clk
0:00:01.9]} 38. Bc6 {[%clk 0:00:03.9]} 38... Nd2 {[%clk 0:00:02.1]} 39. Rfxc3
{[%clk 0:00:03.6]} 39... Nb3 {[%clk 0:00:02.7]} 40. Rf1 {[%clk 0:00:02.9]} 40...
Nd4 {[%clk 0:00:03.1]} 41. Be4 {[%clk 0:00:02.3]} 41... Nf5 {[%clk 0:00:03.7]}
42. a5 {[%clk 0:00:02]} 42... Bf8 {[%clk 0:00:03]} 43. a6 {[%clk 0:00:02.3]}
43... Rb6 {[%clk 0:00:03.6]} 44. a7 {[%clk 0:00:02.7]} 44... Ra6 {[%clk
0:00:03.9]} 45. a8=Q {[%clk 0:00:03.3]} 45... Raxa8 {[%clk 0:00:03.7]} 46. Bxa8
{[%clk 0:00:04.2]} 46... Rxa8 {[%clk 0:00:04.1]} 47. Kf3 {[%clk 0:00:04.1]}
47... Rd8 {[%clk 0:00:04.3]} 48. Kg4 {[%clk 0:00:04.4]} 48... Be7 {[%clk
0:00:04.6]} 49. Rfc1 {[%clk 0:00:04.5]} 49... Bf8 {[%clk 0:00:04.8]} 50. Rc8
{[%clk 0:00:04.5]} 50... Rxc8 {[%clk 0:00:05]} 51. Rxc8 {[%clk 0:00:05.4]} 51...
Nd6 {[%clk 0:00:05.4]} 52. Ra8 {[%clk 0:00:05.3]} 52... Ne4 {[%clk 0:00:05.7]}
53. Kf3 {[%clk 0:00:05.5]} 53... Nd6 {[%clk 0:00:05.7]} 54. Kg4 {[%clk
0:00:05.7]} 54... Nc4 {[%clk 0:00:05.4]} 55. Re8 {[%clk 0:00:05.8]} 55... Nb6
{[%clk 0:00:05.5]} 56. Rb8 {[%clk 0:00:05.6]} 56... Nd5 {[%clk 0:00:05.3]} 57.
Kf3 {[%clk 0:00:05.2]} 57... Ne7 {[%clk 0:00:02.1]} 58. Ke4 {[%clk 0:00:05.1]}
58... Nd5 {[%clk 0:00:02.1]} 59. Ra8 {[%clk 0:00:05.4]} 59... Nc7 {[%clk
0:00:02]} 60. Rc8 {[%clk 0:00:05.3]} 60... Nd5 {[%clk 0:00:02.9]} 61. Ke5 {[%clk
0:00:05.8]} 61... Ne7 {[%clk 0:00:03.4]} 62. Ra8 {[%clk 0:00:05.3]} 62... Nc6+
{[%clk 0:00:03.7]} 63. Ke4 {[%clk 0:00:05.9]} 63... Ne7 {[%clk 0:00:04]} 64. Re8
{[%clk 0:00:05.2]} 64... Nd5 {[%clk 0:00:04.2]} 65. Ra8 {[%clk 0:00:05.3]} 65...
Nc7 {[%clk 0:00:04.3]} 66. Rc8 {[%clk 0:00:05.5]} 66... Nb5 {[%clk 0:00:04.2]}
67. Rb8 {[%clk 0:00:06]} 67... Nd6+ {[%clk 0:00:04.5]} 68. Ke5 {[%clk
0:00:06.3]} 68... Nc4+ {[%clk 0:00:04.2]} 69. Ke4 {[%clk 0:00:06.4]} 69... Nd6+
{[%clk 0:00:04.6]} 70. Ke5 {[%clk 0:00:06.8]} 70... Nf5 {[%clk 0:00:04.7]} 71.
Ke4 {[%clk 0:00:05.6]} 71... Ne7 {[%clk 0:00:02.8]} 72. Ra8 {[%clk 0:00:05.5]}
72... Nc6 {[%clk 0:00:03.3]} 73. Kf3 {[%clk 0:00:05.1]} 73... Nb4 {[%clk
0:00:03.4]} 74. Ke4 {[%clk 0:00:05.6]} 74... Nd5 {[%clk 0:00:04]} 75. Re8 {[%clk
0:00:04.9]} 75... Nc7 {[%clk 0:00:03.1]} 76. Rc8 {[%clk 0:00:05.1]} 1/2-1/2

[Event "Early-Titled-Tuesday-Blitz-February-13-2024"]
[Site "Chess.com"]
[Date "2024.02.13"]
[Round "8"]
[White "ViIIagra"]
[Black "Sam_ChessMood"]
[Result "1-0"]
[WhiteElo "2972"]
[BlackElo "2927"]
[TimeControl "180+1"]
[EndTime "9:33:50 PST"]
[Termination "ViIIagra won on time"]

1. c3 {[%clk 0:02:59.1]} 1... e5 {[%clk 0:02:59]} 2. d4 {[%clk 0:02:59.3]} 2...
exd4 {[%clk 0:02:59.4]} 3. Qxd4 {[%clk 0:03:00.2]} 3... d5 {[%clk 0:02:58.5]} 4.
Nf3 {[%clk 0:02:59.4]} 4... Nf6 {[%clk 0:02:58.8]} 5. Bg5 {[%clk 0:02:59.3]}
5... Be7 {[%clk 0:02:59]} 6. e3 {[%clk 0:02:59.3]} 6... O-O {[%clk 0:02:59]} 7.
Nbd2 {[%clk 0:02:59.5]} 7... h6 {[%clk 0:02:59.2]} 8. Bf4 {[%clk 0:02:49]} 8...
c5 {[%clk 0:02:59.3]} 9. Qa4 {[%clk 0:02:47.6]} 9... Qb6 {[%clk 0:02:58.6]} 10.
Qc2 {[%clk 0:02:45.7]} 10... Nc6 {[%clk 0:02:57.8]} 11. Be2 {[%clk 0:02:46.1]}
11... Be6 {[%clk 0:02:57.1]} 12. O-O {[%clk 0:02:46.2]} 12... Rfd8 {[%clk
0:02:57.4]} 13. Ne5 {[%clk 0:02:37.5]} 13... Rac8 {[%clk 0:02:55.1]} 14. Nxc6
{[%clk 0:02:37.1]} 14... Qxc6 {[%clk 0:02:53.3]} 15. Bf3 {[%clk 0:02:34.5]}
15... Bd6 {[%clk 0:02:25.5]} 16. Bxd6 {[%clk 0:02:28.7]} 16... Qxd6 {[%clk
0:02:26.4]} 17. Rad1 {[%clk 0:02:24.1]} 17... Ng4 {[%clk 0:02:18.6]} 18. g3
{[%clk 0:01:31.8]} 18... Qe5 {[%clk 0:02:14.9]} 19. Bg2 {[%clk 0:01:18.8]} 19...
b6 {[%clk 0:01:51.5]} 20. h3 {[%clk 0:01:14]} 20... Nf6 {[%clk 0:01:50.5]} 21.
Nf3 {[%clk 0:01:14]} 21... Qc7 {[%clk 0:01:40.9]} 22. Nh4 {[%clk 0:01:06.1]}
22... Qe5 {[%clk 0:01:38.4]} 23. b3 {[%clk 0:01:02.7]} 23... a5 {[%clk
0:01:31.7]} 24. Kh2 {[%clk 0:01:02.8]} 24... b5 {[%clk 0:01:16]} 25. f4 {[%clk
0:00:54.7]} 25... Qc7 {[%clk 0:01:13.7]} 26. f5 {[%clk 0:00:53.3]} 26... Bd7
{[%clk 0:01:13.9]} 27. Bxd5 {[%clk 0:00:49.2]} 27... Bc6 {[%clk 0:00:45.1]} 28.
Bxc6 {[%clk 0:00:43.5]} 28... Qxc6 {[%clk 0:00:46]} 29. Qg2 {[%clk 0:00:44.1]}
29... Qe4 {[%clk 0:00:38.2]} 30. Qe2 {[%clk 0:00:33.1]} 30... Re8 {[%clk
0:00:32.4]} 31. Ng2 {[%clk 0:00:31.9]} 31... b4 {[%clk 0:00:30]} 32. c4 {[%clk
0:00:30.3]} 32... a4 {[%clk 0:00:29.6]} 33. Rd3 {[%clk 0:00:22.4]} 33... Re7
{[%clk 0:00:26.1]} 34. Nf4 {[%clk 0:00:20.5]} 34... Re5 {[%clk 0:00:18.1]} 35.
g4 {[%clk 0:00:18]} 35... axb3 {[%clk 0:00:17.8]} 36. axb3 {[%clk 0:00:18.2]}
36... Rce8 {[%clk 0:00:18.5]} 37. Qf3 {[%clk 0:00:17.1]} 37... Ra8 {[%clk
0:00:14.8]} 38. Qxe4 {[%clk 0:00:16.6]} 38... Nxe4 {[%clk 0:00:15.5]} 39. Re1
{[%clk 0:00:11.8]} 39... Nc3 {[%clk 0:00:13]} 40. Kg3 {[%clk 0:00:10.1]} 40...
Ra2 {[%clk 0:00:12.8]} 41. Kh4 {[%clk 0:00:04.3]} 41... Rf2 {[%clk 0:00:07]} 42.
Rd8+ {[%clk 0:00:04.6]} 42... Kh7 {[%clk 0:00:06.7]} 43. Nd3 {[%clk 0:00:03.3]}
43... Rd2 {[%clk 0:00:06]} 44. Nxe5 {[%clk 0:00:02]} 44... Rxd8 {[%clk
0:00:06.1]} 45. Nxf7 {[%clk 0:00:02.8]} 45... Rd2 {[%clk 0:00:05.2]} 46. e4
{[%clk 0:00:02.6]} 46... g5+ {[%clk 0:00:05.1]} 47. fxg6+ {[%clk 0:00:03]} 47...
Kxg6 {[%clk 0:00:05.7]} 48. Ne5+ {[%clk 0:00:03.9]} 48... Kg7 {[%clk 0:00:06.1]}
49. Nf3 {[%clk 0:00:04.3]} 49... Rd3 {[%clk 0:00:06.4]} 50. Ne5 {[%clk 0:00:05]}
50... Rd2 {[%clk 0:00:04.2]} 51. Kg3 {[%clk 0:00:05.5]} 51... Ne2+ {[%clk
0:00:01.6]} 52. Kf3 {[%clk 0:00:04.9]} 52... Nd4+ {[%clk 0:00:02.5]} 53. Kf4
{[%clk 0:00:04.6]} 53... Rf2+ {[%clk 0:00:02.4]} 54. Kg3 {[%clk 0:00:04]} 54...
Rb2 {[%clk 0:00:02.3]} 55. Nd7 {[%clk 0:00:03.7]} 55... Rxb3+ {[%clk 0:00:02.3]}
56. Kf4 {[%clk 0:00:03.4]} 56... Rf3+ {[%clk 0:00:02]} 57. Ke5 {[%clk 0:00:04]}
57... Rf7 {[%clk 0:00:02.6]} 58. Kd6 {[%clk 0:00:04.6]} 58... b3 {[%clk
0:00:02.2]} 59. e5 {[%clk 0:00:05.2]} 59... Nc2 {[%clk 0:00:01.9]} 60. Rb1
{[%clk 0:00:05]} 60... Rf3 {[%clk 0:00:01.9]} 61. e6 {[%clk 0:00:05.2]} 61...
Rd3+ {[%clk 0:00:02.1]} 62. Ke7 {[%clk 0:00:05.8]} 62... Nd4 {[%clk 0:00:01.9]}
63. Nxc5 {[%clk 0:00:06.1]} 63... Re3 {[%clk 0:00:02.3]} 64. Rb2 {[%clk
0:00:05.8]} 64... Rc3 {[%clk 0:00:01.9]} 65. Kd6 {[%clk 0:00:05.7]} 65... Re3
{[%clk 0:00:01.3]} 66. Kd5 {[%clk 0:00:06.2]} 66... Nf3 {[%clk 0:00:01]} 67.
Rxb3 {[%clk 0:00:06.7]} 67... Re5+ {[%clk 0:00:01.3]} 68. Kd6 {[%clk 0:00:07.3]}
1-0